[Event "*** SCC Grand Prix: Titled Tuesday Blitz"]
[Site "Chess.com"]
[Date "2020.07.21"]
[Round "10"]
[White "Vuk2000"]
[Black "nrvignesh"]
[Result "1-0"]
[WhiteElo "2644"]
[BlackElo "2757"]
[TimeControl "180+1"]
[EndTime "12:01:44 PDT"]
[Termination "Vuk2000 won by resignation"]

1. d4 {[%clk 0:03:00.4]} 1... Nf6 {[%clk 0:02:59.7]} 2. Bg5 {[%clk 0:03:00]}
2... e6 {[%clk 0:03:00.6]} 3. e4 {[%clk 0:02:59.3]} 3... h6 {[%clk 0:03:00.6]}
4. Bxf6 {[%clk 0:02:59.2]} 4... Qxf6 {[%clk 0:03:01.5]} 5. c3 {[%clk 0:02:59.6]}
5... d6 {[%clk 0:03:00.9]} 6. Bd3 {[%clk 0:02:59.9]} 6... e5 {[%clk 0:03:00.1]}
7. Ne2 {[%clk 0:02:59.4]} 7... g5 {[%clk 0:02:58.7]} 8. O-O {[%clk 0:02:58.6]}
8... h5 {[%clk 0:02:58.4]} 9. Ng3 {[%clk 0:02:50]} 9... Nc6 {[%clk 0:02:50.8]}
10. Na3 {[%clk 0:02:44.3]} 10... h4 {[%clk 0:02:46.6]} 11. Nf5 {[%clk 0:02:44]}
11... Ne7 {[%clk 0:02:46]} 12. Nb5 {[%clk 0:02:32.3]} 12... Kd8 {[%clk
0:02:45.4]} 13. Ne3 {[%clk 0:02:18.5]} 13... c6 {[%clk 0:02:41]} 14. dxe5 {[%clk
0:02:16.8]} 14... Qxe5 {[%clk 0:02:26]} 15. Nc4 {[%clk 0:02:11.9]} 15... Qxb5
{[%clk 0:02:00.2]} 16. Nxd6 {[%clk 0:02:11.5]} 16... Qc5 {[%clk 0:01:54.9]} 17.
Nxf7+ {[%clk 0:01:57.4]} 17... Kc7 {[%clk 0:01:54.3]} 18. Nxh8 {[%clk
0:01:52.9]} 18... Be6 {[%clk 0:01:48.2]} 19. Qh5 {[%clk 0:01:42.8]} 19... Qd6
{[%clk 0:01:10.8]} 20. Rad1 {[%clk 0:01:35.9]} 20... Qf4 {[%clk 0:01:10.2]} 21.
g3 {[%clk 0:01:11.9]} 21... Bg4 {[%clk 0:00:46.9]} 22. gxf4 {[%clk 0:00:59.1]}
22... Bxh5 {[%clk 0:00:46.8]} 23. f5 {[%clk 0:00:44.5]} 23... Bg7 {[%clk
0:00:43.5]} 24. Ng6 {[%clk 0:00:39.4]} 24... Nxg6 {[%clk 0:00:35.3]} 25. fxg6
{[%clk 0:00:39]} 25... Bxd1 {[%clk 0:00:27.4]} 26. Rxd1 {[%clk 0:00:39.9]} 26...
Rd8 {[%clk 0:00:23.9]} 27. Be2 {[%clk 0:00:33.2]} 27... Rxd1+ {[%clk 0:00:22.3]}
28. Bxd1 {[%clk 0:00:34]} 28... Kd6 {[%clk 0:00:23.2]} 29. Bg4 {[%clk
0:00:33.1]} 29... Ke5 {[%clk 0:00:22.4]} 30. f3 {[%clk 0:00:30.2]} 30... Kf4
{[%clk 0:00:20.9]} 31. Kf2 {[%clk 0:00:29.6]} 31... c5 {[%clk 0:00:20.5]} 32.
Ke2 {[%clk 0:00:29]} 32... b5 {[%clk 0:00:20.2]} 33. Bd7 {[%clk 0:00:27.8]}
33... b4 {[%clk 0:00:20]} 34. cxb4 {[%clk 0:00:23.5]} 34... cxb4 {[%clk
0:00:20.9]} 35. b3 {[%clk 0:00:23.8]} 35... Ke5 {[%clk 0:00:21.1]} 36. Kd3
{[%clk 0:00:22.2]} 36... Kd6 {[%clk 0:00:21.1]} 37. Bf5 {[%clk 0:00:21.8]} 37...
Kc5 {[%clk 0:00:21]} 38. Ke3 {[%clk 0:00:19.9]} 38... Be5 {[%clk 0:00:20.6]} 39.
Kf2 {[%clk 0:00:17]} 39... Kd6 {[%clk 0:00:19.9]} 40. Kg2 {[%clk 0:00:15.7]}
40... Ke7 {[%clk 0:00:19.9]} 41. h3 {[%clk 0:00:10.7]} 41... a5 {[%clk
0:00:19.2]} 42. Kf2 {[%clk 0:00:10.9]} 42... Kd6 {[%clk 0:00:19.4]} 43. Ke3
{[%clk 0:00:10.5]} 43... Kc5 {[%clk 0:00:19.3]} 44. Kd3 {[%clk 0:00:10.8]} 44...
Bd4 {[%clk 0:00:18.9]} 45. Be6 {[%clk 0:00:09.5]} 45... Bf6 {[%clk 0:00:18.6]}
46. Bc4 {[%clk 0:00:09.7]} 46... Be5 {[%clk 0:00:18.4]} 47. Bf7 {[%clk 0:00:09]}
47... Bf6 {[%clk 0:00:18.3]} 48. e5 {[%clk 0:00:09.1]} 48... Bxe5 {[%clk
0:00:17.9]} 49. Ke4 {[%clk 0:00:10]} 49... Bg7 {[%clk 0:00:14.7]} 50. Kf5 {[%clk
0:00:09.5]} 50... Kd6 {[%clk 0:00:14.8]} 51. Kxg5 {[%clk 0:00:09.4]} 51... Ke5
{[%clk 0:00:14.8]} 52. f4+ {[%clk 0:00:06.7]} 52... Ke4 {[%clk 0:00:14.9]} 53.
Bc4 {[%clk 0:00:06.6]} 53... Kd4 {[%clk 0:00:12]} 54. Kf5 {[%clk 0:00:06.9]}
54... Ke3 {[%clk 0:00:11.1]} 55. Bd5 {[%clk 0:00:06.9]} 55... Kd4 {[%clk
0:00:10.7]} 56. Bc6 {[%clk 0:00:07.3]} 56... Kc5 {[%clk 0:00:10.7]} 57. Bb7
{[%clk 0:00:07.2]} 57... Kd6 {[%clk 0:00:11]} 58. Kg5 {[%clk 0:00:06.3]} 58...
Ke6 {[%clk 0:00:10.7]} 59. Be4 {[%clk 0:00:06.9]} 59... Ke7 {[%clk 0:00:08.1]}
60. Kxh4 {[%clk 0:00:07.1]} 60... Kf6 {[%clk 0:00:08.3]} 61. Kg4 {[%clk
0:00:07.7]} 61... Bf8 {[%clk 0:00:08.5]} 62. h4 {[%clk 0:00:07.4]} 62... Bd6
{[%clk 0:00:08.4]} 63. Bd3 {[%clk 0:00:04.4]} 63... Bf8 {[%clk 0:00:09.3]} 64.
f5 {[%clk 0:00:04.5]} 64... Bh6 {[%clk 0:00:08.9]} 65. Kf3 {[%clk 0:00:04.9]}
65... Bd2 {[%clk 0:00:08.2]} 66. Ke4 {[%clk 0:00:05.4]} 66... Bc3 {[%clk
0:00:07.8]} 67. Kd5 {[%clk 0:00:05.6]} 67... Bd2 {[%clk 0:00:07.5]} 68. Be4
{[%clk 0:00:04.7]} 68... Bc3 {[%clk 0:00:07.1]} 69. Kc4 {[%clk 0:00:05]} 69...
Bd2 {[%clk 0:00:07]} 70. Kb5 {[%clk 0:00:05.4]} 1-0

[Event "*** SCC Grand Prix: Titled Tuesday Blitz"]
[Site "Chess.com"]
[Date "2020.07.21"]
[Round "10"]
[White "lider34"]
[Black "Gandrade2"]
[Result "0-1"]
[WhiteElo "2198"]
[BlackElo "2111"]
[TimeControl "180+1"]
[EndTime "12:01:54 PDT"]
[Termination "Gandrade2 won by checkmate"]

1. e4 {[%clk 0:03:00.9]} 1... c5 {[%clk 0:02:59.7]} 2. c3 {[%clk 0:02:59.9]}
2... d5 {[%clk 0:02:59]} 3. exd5 {[%clk 0:02:59.7]} 3... Qxd5 {[%clk 0:02:59.9]}
4. d4 {[%clk 0:02:59.9]} 4... g6 {[%clk 0:02:59.5]} 5. Na3 {[%clk 0:02:55.9]}
5... cxd4 {[%clk 0:02:56.8]} 6. Nb5 {[%clk 0:02:54.1]} 6... Na6 {[%clk 0:02:36]}
7. Qxd4 {[%clk 0:02:51.7]} 7... Qxd4 {[%clk 0:02:34.6]} 8. Nxd4 {[%clk
0:02:52.6]} 8... Bg7 {[%clk 0:02:34.1]} 9. Ngf3 {[%clk 0:02:50.8]} 9... Nf6
{[%clk 0:02:32.8]} 10. Bb5+ {[%clk 0:02:49.9]} 10... Bd7 {[%clk 0:02:31.2]} 11.
Bf4 {[%clk 0:02:44.5]} 11... O-O {[%clk 0:02:19.3]} 12. O-O-O {[%clk 0:02:43]}
12... Nc5 {[%clk 0:02:08.1]} 13. h3 {[%clk 0:02:35]} 13... a6 {[%clk 0:02:05.8]}
14. Bxd7 {[%clk 0:02:31]} 14... Nfxd7 {[%clk 0:02:05.4]} 15. Rhe1 {[%clk
0:02:29.4]} 15... Rfe8 {[%clk 0:02:00.6]} 16. Nc2 {[%clk 0:02:13.2]} 16... e5
{[%clk 0:01:56.9]} 17. Bg3 {[%clk 0:01:35.5]} 17... e4 {[%clk 0:01:56.1]} 18.
Kb1 {[%clk 0:01:16.4]} 18... exf3 {[%clk 0:01:55.6]} 19. Rxe8+ {[%clk
0:01:13.1]} 19... Rxe8 {[%clk 0:01:55]} 20. b4 {[%clk 0:01:14]} 20... fxg2
{[%clk 0:01:26.8]} 21. bxc5 {[%clk 0:01:10]} 21... Nxc5 {[%clk 0:01:22.6]} 22.
Rg1 {[%clk 0:01:07]} 22... Bxc3 {[%clk 0:01:19.4]} 23. Rxg2 {[%clk 0:01:06.4]}
23... Re6 {[%clk 0:00:42.1]} 24. Ne3 {[%clk 0:00:58.5]} 24... Ne4 {[%clk
0:00:27.6]} 25. Kc2 {[%clk 0:00:55.5]} 25... Nxg3 {[%clk 0:00:20.1]} 26. Kxc3
{[%clk 0:00:54]} 26... Ne4+ {[%clk 0:00:19.9]} 27. Kd4 {[%clk 0:00:53.7]} 27...
Nf6 {[%clk 0:00:18.6]} 28. Rg1 {[%clk 0:00:49.4]} 28... Kf8 {[%clk 0:00:15.1]}
29. Rb1 {[%clk 0:00:47.3]} 29... Re7 {[%clk 0:00:13.8]} 30. Rb6 {[%clk
0:00:45.1]} 30... Nd7 {[%clk 0:00:13.2]} 31. Rxb7 {[%clk 0:00:44.3]} 31... Nf6
{[%clk 0:00:11.6]} 32. Rb6 {[%clk 0:00:42.9]} 32... Nh5 {[%clk 0:00:11.1]} 33.
Rxa6 {[%clk 0:00:41.8]} 33... Nf4 {[%clk 0:00:11.7]} 34. a4 {[%clk 0:00:40.7]}
34... Nxh3 {[%clk 0:00:11.4]} 35. a5 {[%clk 0:00:40.2]} 35... Nxf2 {[%clk
0:00:11.7]} 36. Rf6 {[%clk 0:00:39.1]} 36... Ne4 {[%clk 0:00:10]} 37. Rc6 {[%clk
0:00:34.4]} 37... Ng5 {[%clk 0:00:07.5]} 38. Nd5 {[%clk 0:00:32.4]} 38... Ne6+
{[%clk 0:00:07.2]} 39. Kc4 {[%clk 0:00:28.7]} 39... Rd7 {[%clk 0:00:07.3]} 40.
a6 {[%clk 0:00:27.4]} 40... Nd8 {[%clk 0:00:07]} 41. Rc8 {[%clk 0:00:26.1]}
41... Kg7 {[%clk 0:00:07.1]} 42. Nb6 {[%clk 0:00:25.3]} 42... Rd6 {[%clk
0:00:04.6]} 43. a7 {[%clk 0:00:25.2]} 43... Rxb6 {[%clk 0:00:03.6]} 44. a8=Q
{[%clk 0:00:24.7]} 44... Ne6 {[%clk 0:00:03.9]} 45. Qa1+ {[%clk 0:00:23.1]}
45... Kh6 {[%clk 0:00:03.2]} 46. Qh1+ {[%clk 0:00:21.5]} 46... Kg7 {[%clk
0:00:02.9]} 47. Qf3 {[%clk 0:00:20.1]} 47... Rb7 {[%clk 0:00:01.4]} 48. Ra8
{[%clk 0:00:21]} 48... Rd7 {[%clk 0:00:01.6]} 49. Ra1 {[%clk 0:00:19.5]} 49...
Rd4+ {[%clk 0:00:01.9]} 50. Kc3 {[%clk 0:00:17.6]} 50... Rf4 {[%clk 0:00:02.8]}
51. Qd5 {[%clk 0:00:16.3]} 51... Rf5 {[%clk 0:00:01.6]} 52. Re1 {[%clk
0:00:17.2]} 52... Rxd5 {[%clk 0:00:01.7]} 53. Kc4 {[%clk 0:00:15.9]} 53... Rf5
{[%clk 0:00:02.2]} 54. Kc3 {[%clk 0:00:15.4]} 54... h5 {[%clk 0:00:03.1]} 55.
Kc4 {[%clk 0:00:16]} 55... Nf4 {[%clk 0:00:03.6]} 56. Kc3 {[%clk 0:00:16.9]}
56... Ng2 {[%clk 0:00:03.5]} 57. Kc4 {[%clk 0:00:17.8]} 57... Nf4 {[%clk
0:00:04.4]} 58. Kd4 {[%clk 0:00:18.7]} 58... Ne6+ {[%clk 0:00:05.3]} 59. Ke4
{[%clk 0:00:19.1]} 59... Kf6 {[%clk 0:00:06.2]} 60. Kd3 {[%clk 0:00:19.1]} 60...
Rd5+ {[%clk 0:00:06.2]} 61. Kc4 {[%clk 0:00:15.4]} 61... Rd4+ {[%clk 0:00:06.7]}
62. Kc3 {[%clk 0:00:14]} 62... h4 {[%clk 0:00:07.3]} 63. Rf1+ {[%clk 0:00:14.9]}
63... Rf4 {[%clk 0:00:08]} 64. Rg1 {[%clk 0:00:14.6]} 64... g5 {[%clk
0:00:08.3]} 65. Rh1 {[%clk 0:00:14.4]} 65... Kf5 {[%clk 0:00:08.6]} 66. Kd3
{[%clk 0:00:15.3]} 66... f6 {[%clk 0:00:08.9]} 67. Ke3 {[%clk 0:00:16.2]} 67...
Re4+ {[%clk 0:00:08.4]} 68. Kd3 {[%clk 0:00:17.1]} 68... Nf4+ {[%clk 0:00:08.4]}
69. Kd2 {[%clk 0:00:16.8]} 69... Re2+ {[%clk 0:00:08.4]} 70. Kd1 {[%clk
0:00:15.1]} 70... Rg2 {[%clk 0:00:08.3]} 71. Rf1 {[%clk 0:00:14.4]} 71... h3
{[%clk 0:00:08.1]} 72. Ke1 {[%clk 0:00:15.3]} 72... h2 {[%clk 0:00:08.1]} 73.
Kd1 {[%clk 0:00:16.2]} 73... Rg1 {[%clk 0:00:08.6]} 74. Ke1 {[%clk 0:00:17.1]}
74... Rxf1+ {[%clk 0:00:08.9]} 75. Kxf1 {[%clk 0:00:16.2]} 75... h1=Q+ {[%clk
0:00:08.9]} 76. Kf2 {[%clk 0:00:17.1]} 76... Qg2+ {[%clk 0:00:08.3]} 77. Ke3
{[%clk 0:00:16.2]} 77... Qe4+ {[%clk 0:00:07.5]} 78. Kd2 {[%clk 0:00:13.3]}
78... Qd3+ {[%clk 0:00:06.7]} 79. Kc1 {[%clk 0:00:13.1]} 79... Qe2 {[%clk
0:00:06.1]} 80. Kb1 {[%clk 0:00:12]} 80... Ke4 {[%clk 0:00:06.8]} 81. Ka1 {[%clk
0:00:12.9]} 81... Kd3 {[%clk 0:00:07.4]} 82. Kb1 {[%clk 0:00:13.4]} 82... Kc3
{[%clk 0:00:08]} 83. Kc1 {[%clk 0:00:13.1]} 83... Qc2# {[%clk 0:00:08.5]} 0-1

[Event "*** SCC Grand Prix: Titled Tuesday Blitz"]
[Site "Chess.com"]
[Date "2020.07.21"]
[Round "10"]
[White "Shushik"]
[Black "checkmatequen"]
[Result "1-0"]
[WhiteElo "2250"]
[BlackElo "2312"]
[TimeControl "180+1"]
[EndTime "12:02:25 PDT"]
[Termination "Shushik won by resignation"]

1. e4 {[%clk 0:03:00.9]} 1... c5 {[%clk 0:02:55.3]} 2. Ne2 {[%clk 0:03:00.7]}
2... e6 {[%clk 0:02:50.2]} 3. g3 {[%clk 0:03:00.4]} 3... c4 {[%clk 0:02:50.3]}
4. Bg2 {[%clk 0:02:59.3]} 4... Nc6 {[%clk 0:02:50.5]} 5. O-O {[%clk 0:02:58.4]}
5... b5 {[%clk 0:02:50.8]} 6. d3 {[%clk 0:02:55.3]} 6... cxd3 {[%clk 0:02:50.3]}
7. cxd3 {[%clk 0:02:55.1]} 7... Bb7 {[%clk 0:02:50.7]} 8. f4 {[%clk 0:02:53.7]}
8... g6 {[%clk 0:02:50.4]} 9. Be3 {[%clk 0:02:52.1]} 9... Bg7 {[%clk 0:02:50.2]}
10. d4 {[%clk 0:02:52]} 10... Nge7 {[%clk 0:02:49.6]} 11. e5 {[%clk 0:02:41.9]}
11... O-O {[%clk 0:02:38.9]} 12. Nbc3 {[%clk 0:02:41.4]} 12... a6 {[%clk
0:02:38.1]} 13. Ne4 {[%clk 0:02:31.6]} 13... Na5 {[%clk 0:02:26.5]} 14. b3
{[%clk 0:02:26.5]} 14... Nf5 {[%clk 0:02:21.6]} 15. Bf2 {[%clk 0:02:24]} 15...
h5 {[%clk 0:02:12.7]} 16. Qd2 {[%clk 0:02:19.5]} 16... d6 {[%clk 0:02:00.6]} 17.
Be1 {[%clk 0:02:06.4]} 17... Nc6 {[%clk 0:01:57.4]} 18. Rc1 {[%clk 0:01:53.6]}
18... Qd7 {[%clk 0:01:27.2]} 19. Bf2 {[%clk 0:01:46]} 19... Rfd8 {[%clk
0:01:26.7]} 20. Qb2 {[%clk 0:01:27.7]} 20... Nh6 {[%clk 0:01:10.4]} 21. Nxd6
{[%clk 0:01:23.7]} 21... Na5 {[%clk 0:00:48.7]} 22. Nxb7 {[%clk 0:01:22.5]}
22... Nxb7 {[%clk 0:00:49.6]} 23. Qa3 {[%clk 0:01:02.6]} 23... Ng4 {[%clk
0:00:46.4]} 24. Bc6 {[%clk 0:01:00.9]} 24... Qc7 {[%clk 0:00:38.4]} 25. b4
{[%clk 0:00:47.6]} 25... Qb6 {[%clk 0:00:33.4]} 26. Qf3 {[%clk 0:00:43.9]} 26...
Nxf2 {[%clk 0:00:30.7]} 27. Rxf2 {[%clk 0:00:41.9]} 27... Rab8 {[%clk
0:00:22.7]} 28. Bxb7 {[%clk 0:00:39.3]} 28... Rxb7 {[%clk 0:00:21.5]} 29. Rc6
{[%clk 0:00:37.9]} 29... Qa7 {[%clk 0:00:21.1]} 30. Qc3 {[%clk 0:00:37.2]} 30...
Bf8 {[%clk 0:00:20.6]} 31. Rf1 {[%clk 0:00:34.1]} 31... a5 {[%clk 0:00:20.8]}
32. bxa5 {[%clk 0:00:23.3]} 32... b4 {[%clk 0:00:20.9]} 33. Qc2 {[%clk
0:00:22.4]} 33... Qxa5 {[%clk 0:00:21.3]} 34. Rc1 {[%clk 0:00:18.5]} 34... Ra7
{[%clk 0:00:20.2]} 35. Rc8 {[%clk 0:00:18.1]} 35... Rxc8 {[%clk 0:00:19.5]} 36.
Qxc8 {[%clk 0:00:18]} 36... Qxa2 {[%clk 0:00:19.9]} 37. Kf2 {[%clk 0:00:14.2]}
37... b3 {[%clk 0:00:18]} 38. Qd8 {[%clk 0:00:11.6]} 38... b2 {[%clk 0:00:17.1]}
39. Rc8 {[%clk 0:00:11.6]} 39... Qa3 {[%clk 0:00:17.1]} 40. Nc3 {[%clk
0:00:11.2]} 40... Rb7 {[%clk 0:00:12.5]} 41. Nb1 {[%clk 0:00:10.6]} 41... Qb4
{[%clk 0:00:12.7]} 42. Kf3 {[%clk 0:00:08.3]} 42... Ra7 {[%clk 0:00:12.4]} 43.
Rb8 {[%clk 0:00:06.8]} 43... Qe7 {[%clk 0:00:10.5]} 44. Qxe7 {[%clk 0:00:06.7]}
44... Rxe7 {[%clk 0:00:11.2]} 45. Rxb2 {[%clk 0:00:07.6]} 45... Rd7 {[%clk
0:00:11.6]} 46. Ke3 {[%clk 0:00:06.5]} 46... Kg7 {[%clk 0:00:11.4]} 47. Nc3
{[%clk 0:00:06.6]} 47... Rc7 {[%clk 0:00:11.2]} 48. Ne4 {[%clk 0:00:06.7]} 48...
Rc1 {[%clk 0:00:10.8]} 49. Re2 {[%clk 0:00:06.1]} 49... Bb4 {[%clk 0:00:09.5]}
50. Nf6 {[%clk 0:00:05.3]} 50... Rc3+ {[%clk 0:00:09.2]} 51. Ke4 {[%clk
0:00:05.3]} 51... Ba3 {[%clk 0:00:07.9]} 52. d5 {[%clk 0:00:05]} 52... Rc4+
{[%clk 0:00:07.2]} 53. Kd3 {[%clk 0:00:04.8]} 53... Rc1 {[%clk 0:00:05.1]} 54.
d6 {[%clk 0:00:04.7]} 54... Bxd6 {[%clk 0:00:04.8]} 55. exd6 {[%clk 0:00:04.2]}
55... Kf8 {[%clk 0:00:05.1]} 56. Nh7+ {[%clk 0:00:03.5]} 56... Ke8 {[%clk
0:00:04.7]} 57. Nf6+ {[%clk 0:00:03.7]} 57... Kd8 {[%clk 0:00:04.7]} 58. Rc2
{[%clk 0:00:03.8]} 58... Rd1+ {[%clk 0:00:04.9]} 59. Rd2 {[%clk 0:00:04]} 59...
Rc1 {[%clk 0:00:04.7]} 60. Ke4 {[%clk 0:00:03.2]} 60... Rc4+ {[%clk 0:00:04.4]}
61. Rd4 {[%clk 0:00:02.8]} 61... Rc1 {[%clk 0:00:03.7]} 62. d7 {[%clk
0:00:02.9]} 62... Re1+ {[%clk 0:00:03.8]} 63. Kf3 {[%clk 0:00:03.1]} 63... Rf1+
{[%clk 0:00:03.6]} 64. Ke2 {[%clk 0:00:03.2]} 64... Ra1 {[%clk 0:00:03.2]} 65.
Rc4 {[%clk 0:00:03.1]} 65... Ra2+ {[%clk 0:00:03.5]} 66. Ke1 {[%clk 0:00:02.7]}
66... Ra8 {[%clk 0:00:03]} 67. Kd2 {[%clk 0:00:02.3]} 67... Rb8 {[%clk
0:00:02.8]} 68. Rc8+ {[%clk 0:00:02]} 68... Rxc8 {[%clk 0:00:02.2]} 69. dxc8=Q+
{[%clk 0:00:01.7]} 69... Kxc8 {[%clk 0:00:03.1]} 70. Ke3 {[%clk 0:00:01.8]}
70... Kd8 {[%clk 0:00:03.5]} 71. Ke4 {[%clk 0:00:02.5]} 71... Ke7 {[%clk
0:00:03.8]} 72. Ke5 {[%clk 0:00:02.8]} 72... Kf8 {[%clk 0:00:04]} 73. Ne4 {[%clk
0:00:03]} 73... Kg7 {[%clk 0:00:04.2]} 74. Kd6 {[%clk 0:00:02.9]} 74... Kf8
{[%clk 0:00:03.6]} 75. Ke5 {[%clk 0:00:01.9]} 75... Kg7 {[%clk 0:00:03.7]} 76.
Nd2 {[%clk 0:00:02]} 76... Kf8 {[%clk 0:00:03.7]} 77. Kf6 {[%clk 0:00:02.1]}
77... Ke8 {[%clk 0:00:04]} 78. Nf3 {[%clk 0:00:02.2]} 78... Kf8 {[%clk
0:00:04.2]} 79. Ne5 {[%clk 0:00:02.4]} 79... Ke8 {[%clk 0:00:04.4]} 80. Nxf7
{[%clk 0:00:02.6]} 80... Kd7 {[%clk 0:00:04.4]} 81. Kxg6 {[%clk 0:00:02.6]}
81... Ke7 {[%clk 0:00:04.3]} 82. Ne5 {[%clk 0:00:02.7]} 82... Kd6 {[%clk
0:00:04]} 83. Kxh5 {[%clk 0:00:02.8]} 83... Kd5 {[%clk 0:00:04.9]} 84. g4 {[%clk
0:00:02.9]} 84... Ke4 {[%clk 0:00:05.8]} 85. g5 {[%clk 0:00:03]} 85... Kxf4
{[%clk 0:00:06]} 86. g6 {[%clk 0:00:03.2]} 86... Kxe5 {[%clk 0:00:06.9]} 87. g7
{[%clk 0:00:03.5]} 87... Kf5 {[%clk 0:00:07.8]} 88. g8=Q {[%clk 0:00:03.4]}
88... e5 {[%clk 0:00:08.7]} 89. Qg3 {[%clk 0:00:03.5]} 89... Ke4 {[%clk
0:00:09.6]} 90. Qe1+ {[%clk 0:00:03.5]} 90... Kd4 {[%clk 0:00:10.5]} 91. Qe2
{[%clk 0:00:03.6]} 91... e4 {[%clk 0:00:11.4]} 92. Kg6 {[%clk 0:00:03.7]} 92...
e3 {[%clk 0:00:12]} 93. h4 {[%clk 0:00:03.9]} 93... Ke4 {[%clk 0:00:12.9]} 94.
h5 {[%clk 0:00:03.8]} 1-0